fUST/lending_fUST_20250210
["ID","MTS","AMOUNT","RATE_DAILY","PERIOD"]
[352588646,1739182242126,-504.38,0.00011232,2]
[352588647,1739182242136,-500.0,0.00011232,2]
[352588648,1739182242146,-500.0,0.00011232,2]
[352588649,1739182242159,-500.0,0.00011232,2]
[352588650,1739182242169,-3197.23,0.00011232,2]
[352588651,1739182242179,-500.0,0.00011232,2]
[352588652,1739182242188,-500.0,0.00011232,2]
[352588653,1739182242200,-500.0,0.00011232,2]
[352588654,1739182242210,-500.0,0.00011232,2]
[352588655,1739182242219,-500.0,0.00011232,2]
[352588656,1739182242229,-500.0,0.00011232,2]
[352588657,1739182242240,-860.86,0.00011232,2]
[352588658,1739182242252,-625.72,0.00011232,2]
[352588659,1739182242262,-1250.97,0.00011232,2]
[352588660,1739182242271,-1627.94,0.00011232,2]
[352588661,1739182242281,-1098.11,0.00011232,2]
[352588662,1739182242291,-151.0,0.000113,2]
[352588663,1739182242301,-831.129166,0.00011328,2]
[352588664,1739182242311,-523.53733128,0.00011341,2]
[352588665,1739182242320,-151.69023102,0.00011349,2]
[352588666,1739182242330,-161.48359255,0.00011349,2]
[352588667,1739182242340,-500.0,0.00011349,2]
[352588668,1739182242349,-500.0,0.00011349,2]
[352588669,1739182242359,-500.0,0.00011349,2]
[352588670,1739182242368,-500.0,0.00011349,2]
[352588671,1739182242378,-501.74800582,0.00011349,2]
[352588672,1739182242387,-500.0,0.00011355,2]
[352588673,1739182242396,-385.91203686,0.00011355,2]
[352588674,1739182242406,-500.15137074,0.00011355,2]
[352588675,1739182242415,-500.0,0.00011362,2]
[352588676,1739182242425,-500.0,0.00011363,2]
[352588677,1739182242434,-500.0,0.00011369,2]
[352588678,1739182242444,-500.0,0.00011369,2]
[352588679,1739182242453,-500.0,0.00011369,2]
[352588680,1739182242463,-500.0,0.00011369,2]
[352588681,1739182242472,-295.2,0.00011369,2]
[352588682,1739182242482,-500.0,0.00011369,2]
[352588683,1739182242491,-500.0,0.00011369,2]
[352588684,1739182242502,-500.0,0.00011369,2]
[352588685,1739182242511,-500.0,0.00011369,2]
[352588686,1739182242521,-500.0,0.00011369,2]
[352588687,1739182242531,-500.0,0.00011369,2]
[352588688,1739182242541,-500.0,0.00011369,2]
[352588689,1739182242551,-500.0,0.00011369,2]
[352588690,1739182242561,-500.0,0.00011369,2]
[352588691,1739182242571,-500.0,0.00011369,2]
[352588692,1739182242581,-500.0,0.00011369,2]
[352588693,1739182242591,-500.0,0.00011369,2]
[352588694,1739182242601,-514.87344771,0.00011369,2]
[352588695,1739182242611,-500.0,0.00011369,2]
[352588697,1739182242621,-500.0,0.00011369,2]
[352588699,1739182242630,-500.0,0.00011369,2]
[352588701,1739182242640,-536.23,0.00011369,2]
[352588703,1739182242650,-500.0,0.00011369,2]
[352588704,1739182242659,-180.55146925,0.00011369,2]
[352588706,1739182242669,-500.0,0.00011369,2]
[352588708,1739182242679,-500.0,0.00011369,2]
[352588709,1739182242688,-500.0,0.00011369,2]
[352588710,1739182242698,-500.0,0.00011369,2]
[352588711,1739182242707,-500.0,0.00011369,2]
[352588712,1739182242717,-500.0,0.00011369,2]
[352588713,1739182242731,-500.0,0.00011369,2]
[352588715,1739182242740,-500.0,0.00011369,2]
[352588716,1739182242750,-500.0,0.00011369,2]
[352588717,1739182242761,-500.0,0.00011369,2]
[352588718,1739182242771,-507.03,0.00011369,2]
[352588719,1739182242780,-500.0,0.00011369,2]
[352588720,1739182242790,-500.0,0.00011369,2]
[352588721,1739182242800,-500.0,0.00011369,2]
[352588722,1739182242809,-500.0,0.00011369,2]
[352588723,1739182242820,-500.0,0.00011369,2]
[352588724,1739182242833,-500.0,0.00011369,2]
[352588725,1739182242843,-500.0,0.00011369,2]
[352588727,1739182242852,-500.0,0.00011369,2]
[352588728,1739182242862,-626.7905281,0.00011369,2]
[352588729,1739182242871,-500.0,0.00011369,2]
[352588730,1739182242881,-723.46,0.00011369,2]
[352588731,1739182242891,-500.0,0.00011369,2]
[352588732,1739182242900,-500.0,0.00011369,2]
[352588733,1739182242910,-500.0,0.00011369,2]
[352588734,1739182242919,-500.0,0.00011369,2]
[352588735,1739182242929,-500.0,0.00011369,2]
[352588736,1739182242939,-500.0,0.00011369,2]
[352588737,1739182242949,-402.32676961,0.00011369,2]
[352588739,1739182242958,-500.0,0.00011369,2]
[352588740,1739182242968,-500.0,0.00011369,2]
[352588741,1739182242978,-500.0,0.00011369,2]
[352588742,1739182242988,-500.0,0.00011369,2]
[352588743,1739182242997,-500.0,0.00011369,2]
[352588745,1739182243008,-500.0,0.00011369,2]
[352588746,1739182243017,-500.0,0.00011369,2]
[352588747,1739182243026,-500.0,0.00011369,2]
[352588748,1739182243036,-500.0,0.00011369,2]
[352588749,1739182243045,-500.0,0.00011369,2]
[352588750,1739182243055,-500.0,0.00011369,2]
[352588751,1739182243064,-500.0,0.00011369,2]
[352588752,1739182243073,-753.31,0.00011369,2]
[352588753,1739182243082,-7190.81,0.00011369,2]
[352588754,1739182243091,-500.0,0.00011369,2]
[352588755,1739182243101,-500.0,0.00011369,2]
[352588756,1739182243110,-500.0,0.00011369,2]
[352588758,1739182243120,-500.0,0.00011369,2]
[352588759,1739182243130,-554.42,0.00011369,2]
[352588760,1739182243139,-739.79,0.00011369,2]
[352588761,1739182243149,-500.0,0.00011369,2]
[352588762,1739182243163,-500.0,0.00011369,2]
[352588763,1739182243173,-1110.24,0.00011369,2]
[352588764,1739182243182,-500.0,0.00011369,2]
[352588765,1739182243192,-500.0,0.00011369,2]
[352588766,1739182243202,-632.3,0.00011369,2]
[352588767,1739182243212,-500.0,0.00011369,2]
[352588768,1739182243221,-18337.05,0.00011369,2]
[352588769,1739182243232,-1581.79,0.00011369,2]
[352588770,1739182243242,-500.0,0.00011369,2]
[352588771,1739182243252,-500.0,0.00011369,2]
[352588772,1739182243261,-3130.27,0.00011369,2]
[352588773,1739182243271,-887.3,0.00011369,2]
[352588774,1739182243280,-500.0,0.00011369,2]
[352588775,1739182243367,-298.36,0.00011369,2]
[352588776,1739182243388,-500.0,0.00011369,2]
[352588777,1739182243398,-500.0,0.00011369,2]
[352588778,1739182243408,-500.0,0.00011369,2]
[352588779,1739182243418,-500.0,0.00011369,2]
[352588780,1739182243428,-500.0,0.00011369,2]
[352588781,1739182243438,-500.0,0.00011369,2]
[352588782,1739182243447,-500.0,0.00011369,2]
[352588783,1739182243457,-500.0,0.00011369,2]
[352588784,1739182243466,-500.0,0.00011369,2]
[352588785,1739182243476,-500.0,0.00011369,2]
[352588786,1739182243488,-500.0,0.00011369,2]
[352588787,1739182243497,-500.0,0.00011369,2]
[352588788,1739182243513,-1606.85,0.00011369,2]
[352588789,1739182243523,-500.0,0.00011369,2]
[352588790,1739182243532,-500.0,0.00011369,2]
[352588791,1739182243542,-857.73,0.00011369,2]
[352588792,1739182243551,-500.0,0.00011369,2]
[352588793,1739182243561,-1277.65,0.00011369,2]
[352588794,1739182243571,-439.80632446,0.00011369,2]
[352588795,1739182243580,-500.0,0.00011369,2]
[352588796,1739182243589,-574.94,0.00011369,2]
[352588797,1739182243599,-500.0,0.00011369,2]
[352588798,1739182243609,-500.0,0.00011369,2]
[352588799,1739182243619,-500.0,0.00011369,2]
[352588800,1739182243629,-214.49,0.00011369,2]
[352588801,1739182243639,-571.46,0.00011369,2]
[352588802,1739182243648,-745.33,0.00011369,2]
[352588803,1739182243658,-500.0,0.00011369,2]
[352588804,1739182243668,-976.49,0.00011369,2]
[352588805,1739182243677,-500.0,0.00011369,2]
[352588806,1739182243687,-749.83,0.00011369,2]
[352588807,1739182243697,-500.0,0.00011369,2]
[352588808,1739182243707,-500.0,0.00011369,2]
[352588809,1739182243717,-773.12,0.00011369,2]
[352588810,1739182243728,-500.0,0.00011369,2]
[352588811,1739182243739,-500.0,0.00011369,2]
[352588812,1739182243749,-7576.33,0.00011369,2]
[352588813,1739182243761,-500.0,0.00011369,2]
[352588814,1739182243770,-500.0,0.00011369,2]
[352588815,1739182243780,-500.0,0.00011369,2]
[352588816,1739182243790,-1637.14,0.00011369,2]
[352588817,1739182243799,-2074.85,0.00011369,2]
[352588818,1739182243809,-868.21,0.00011369,2]
[352588819,1739182243819,-500.0,0.00011369,2]
[352588820,1739182243828,-500.0,0.00011369,2]
[352588821,1739182243838,-500.0,0.00011369,2]
[352588822,1739182243848,-500.0,0.00011369,2]
[352588823,1739182243858,-500.0,0.00011369,2]
[352588824,1739182243868,-500.0,0.00011369,2]
[352588825,1739182243878,-504.38,0.00011369,2]
[352588826,1739182243887,-500.0,0.00011369,2]
[352588827,1739182243897,-500.0,0.00011369,2]
[352588828,1739182243908,-500.0,0.00011369,2]
[352588829,1739182243918,-3197.23,0.00011369,2]
[352588830,1739182243928,-533.76,0.00011369,2]
[352588831,1739182243937,-500.0,0.00011369,2]
[352588832,1739182243947,-500.0,0.00011369,2]
[352588833,1739182243957,-860.86,0.00011369,2]
[352588834,1739182243967,-1250.97,0.00011369,2]
[352588835,1739182243977,-1627.94,0.00011369,2]
[352588836,1739182243988,-151.0,0.000114,2]
[352588837,1739182243999,-151.0,0.000114,2]
[352588838,1739182244012,-2151.92045298,0.00011406,2]
[352588839,1739182244022,-241.68109226,0.00011429,2]
[352588840,1739182244034,-500.0,0.00011452,2]
[352588841,1739182244044,-500.0,0.00011467,2]
[352588842,1739182244054,-508.44500603,0.00011467,2]
[352588843,1739182244065,-500.0,0.00011467,2]
[352588844,1739182244075,-151.0,0.000115,2]
[352588845,1739182244085,-151.0,0.000115,2]
[352588846,1739182244096,-151.0,0.000115,2]
[352588847,1739182244109,-500.0,0.00011506,2]
[352588848,1739182244120,-321.28,0.00011506,2]
[352588849,1739182244131,-500.0,0.00011506,2]
[352588850,1739182244141,-500.0,0.00011506,2]
[352588851,1739182244152,-328.66,0.00011506,2]
[352588852,1739182244168,-500.0,0.00011506,2]
[352588853,1739182244178,-500.0,0.00011506,2]
[352588854,1739182244190,-500.0,0.00011506,2]
[352588855,1739182244203,-500.0,0.00011506,2]
[352588856,1739182244213,-500.0,0.00011506,2]
[352588857,1739182244223,-500.0,0.00011506,2]
[352588858,1739182244234,-500.0,0.00011506,2]
[352588859,1739182244245,-500.0,0.00011506,2]
[352588860,1739182244259,-500.0,0.00011506,2]
[352588861,1739182244269,-536.23,0.00011506,2]
[352588862,1739182244280,-500.0,0.00011506,2]
[352588863,1739182244290,-500.0,0.00011506,2]
[352588864,1739182244300,-500.0,0.00011506,2]
[352588865,1739182244310,-500.0,0.00011506,2]
[352588866,1739182244320,-500.0,0.00011506,2]
[352588867,1739182244329,-500.0,0.00011506,2]
[352588868,1739182244339,-500.0,0.00011506,2]
[352588869,1739182244349,-500.0,0.00011506,2]
[352588870,1739182244359,-500.0,0.00011506,2]
[352588871,1739182244370,-507.03,0.00011506,2]
[352588872,1739182244380,-500.0,0.00011506,2]
[352588873,1739182244390,-500.0,0.00011506,2]
[352588874,1739182244400,-519.86851617,0.00011506,2]
[352588875,1739182244409,-500.0,0.00011506,2]
[352588876,1739182244419,-500.0,0.00011506,2]
[352588877,1739182244430,-500.0,0.00011506,2]
[352588878,1739182244440,-447.87667925,0.00011506,2]
[352588879,1739182244451,-723.46,0.00011506,2]
[352588880,1739182244462,-155.31,0.00011506,2]
[352588881,1739182244473,-500.0,0.00011506,2]
[352588882,1739182244484,-500.0,0.00011506,2]
[352588883,1739182244495,-500.0,0.00011506,2]
[352588884,1739182244508,-500.0,0.00011506,2]
[352588885,1739182244518,-355.99411959,0.00011506,2]
[352588886,1739182244529,-500.0,0.00011506,2]
[352588887,1739182244539,-500.0,0.00011506,2]
[352588888,1739182244550,-500.0,0.00011506,2]
[352588889,1739182244560,-500.0,0.00011506,2]
[352588890,1739182244571,-753.31,0.00011506,2]
[352588891,1739182244581,-7190.81,0.00011506,2]
[352588892,1739182244590,-500.0,0.00011506,2]
[352588893,1739182244600,-500.0,0.00011506,2]
[352588894,1739182244611,-500.0,0.00011506,2]
[352588895,1739182244621,-500.0,0.00011506,2]
[352588896,1739182244632,-554.42,0.00011506,2]
[352588897,1739182244643,-739.79,0.00011506,2]
[352588898,1739182244653,-500.0,0.00011506,2]
[352588899,1739182244664,-1110.24,0.00011506,2]
[352588900,1739182244675,-500.0,0.00011506,2]
[352588901,1739182244685,-632.3,0.00011506,2]
[352588902,1739182244696,-500.0,0.00011506,2]
[352588903,1739182244707,-18337.05,0.00011506,2]
[352588904,1739182244717,-1581.79,0.00011506,2]
[352588905,1739182244727,-500.0,0.00011506,2]
[352588906,1739182244738,-887.3,0.00011506,2]
[352588907,1739182244748,-3130.27,0.00011506,2]
[352588908,1739182244760,-500.0,0.00011506,2]
[352588909,1739182244770,-500.0,0.00011506,2]
[352588910,1739182244780,-500.0,0.00011506,2]
[352588911,1739182244789,-500.0,0.00011506,2]
[352588912,1739182244800,-611.96,0.00011506,2]
[352588913,1739182244810,-500.0,0.00011506,2]
[352588914,1739182244822,-500.0,0.00011506,2]
[352588915,1739182244832,-500.0,0.00011506,2]
[352588916,1739182244843,-500.0,0.00011506,2]
[352588917,1739182244853,-1606.85,0.00011506,2]
[352588918,1739182244864,-500.0,0.00011506,2]
[352588919,1739182244875,-500.0,0.00011506,2]
[352588920,1739182244886,-857.73,0.00011506,2]
[352588921,1739182244896,-500.0,0.00011506,2]
[352588922,1739182244907,-1277.65,0.00011506,2]
[352588923,1739182244918,-500.0,0.00011506,2]
[352588924,1739182244928,-574.94,0.00011506,2]
[352588925,1739182244939,-500.0,0.00011506,2]
[352588926,1739182244949,-500.0,0.00011506,2]
[352588927,1739182244959,-500.0,0.00011506,2]
[352588928,1739182244969,-571.46,0.00011506,2]
[352588929,1739182244979,-745.33,0.00011506,2]
[352588930,1739182244988,-976.49,0.00011506,2]
[352588931,1739182244999,-500.0,0.00011506,2]
[352588932,1739182245010,-749.83,0.00011506,2]
[352588933,1739182245020,-500.0,0.00011506,2]
[352588934,1739182245029,-423.9140365,0.00011506,2]
[352588935,1739182245039,-773.12,0.00011506,2]
[352588936,1739182245050,-152.88966977,0.00011506,2]
[352588937,1739182245060,-7576.33,0.00011506,2]
[352588938,1739182245071,-599.18727519,0.00011506,2]
[352588939,1739182245080,-1637.14,0.00011506,2]
[352588940,1739182245090,-2074.85,0.00011506,2]
[352588941,1739182245100,-868.21,0.00011506,2]
[352588942,1739182245111,-500.0,0.00011506,2]
[352588943,1739182245121,-500.0,0.00011506,2]
[352588944,1739182245131,-500.0,0.00011506,2]
[352588945,1739182245141,-500.0,0.00011506,2]
[352588946,1739182245151,-500.0,0.00011506,2]
[352588947,1739182245164,-500.0,0.00011506,2]
[352588948,1739182245174,-504.38,0.00011506,2]
[352588949,1739182245183,-3197.23,0.00011506,2]
[352588950,1739182245195,-500.0,0.00011506,2]
[352588951,1739182245206,-500.0,0.00011506,2]
[352588952,1739182245216,-860.86,0.00011506,2]
[352588953,1739182245226,-1250.97,0.00011506,2]
[352588954,1739182245237,-1627.94,0.00011506,2]
[352588955,1739182245246,-500.0628284,0.0001152,2]
[352588956,1739182245256,-701.237282,0.00011521,2]
[352588957,1739182245266,-326.09484289,0.00011532,2]
[352588958,1739182245276,-151.0,0.000116,2]
[352588959,1739182245286,-151.0,0.000116,2]
[352588960,1739182245296,-1000.0,0.00011623,2]
[352588961,1739182245306,-500.0,0.00011643,2]
[352588962,1739182245315,-500.0,0.00011643,2]
[352588963,1739182245326,-500.0,0.00011643,2]
[352588964,1739182245336,-500.0,0.00011643,2]
[352588965,1739182245346,-500.0,0.00011643,2]
[352588966,1739182245355,-500.0,0.00011643,2]
[352588967,1739182245364,-500.0,0.00011643,2]
[352588968,1739182245375,-500.0,0.00011643,2]
[352588969,1739182245385,-500.0,0.00011643,2]
[352588970,1739182245394,-500.0,0.00011643,2]
[352588971,1739182245403,-536.23,0.00011643,2]
[352588972,1739182245413,-500.0,0.00011643,2]
[352588973,1739182245426,-500.0,0.00011643,2]
[352588974,1739182245437,-500.0,0.00011643,2]
[352588975,1739182245447,-500.0,0.00011643,2]
[352588976,1739182245457,-500.0,0.00011643,2]
[352588977,1739182245467,-507.03,0.00011643,2]
[352588978,1739182245477,-500.0,0.00011643,2]
[352588979,1739182245487,-500.0,0.00011643,2]
[352588980,1739182245496,-500.0,0.00011643,2]
[352588981,1739182245508,-723.46,0.00011643,2]
[352588982,1739182245518,-500.0,0.00011643,2]
[352588983,1739182245529,-500.0,0.00011643,2]
[352588984,1739182245643,-560.88,0.00011643,2]
[352588985,1739182245654,-500.0,0.00011643,2]
[352588986,1739182245664,-500.0,0.00011643,2]
[352588988,1739182245674,-500.0,0.00011643,2]
[352588989,1739182245684,-753.31,0.00011643,2]
[352588990,1739182245694,-7190.81,0.00011643,2]
[352588991,1739182245704,-500.0,0.00011643,2]
[352588992,1739182245713,-500.0,0.00011643,2]
[352588993,1739182245724,-500.0,0.00011643,2]
[352588995,1739182245735,-500.0,0.00011643,2]
[352588997,1739182245744,-554.42,0.00011643,2]
[352588999,1739182245754,-739.79,0.00011643,2]
[352589001,1739182245765,-500.0,0.00011643,2]
[352589002,1739182245775,-1110.24,0.00011643,2]
[352589005,1739182245784,-500.0,0.00011643,2]
[352589007,1739182245795,-151.0,0.00011643,2]
[352589009,1739182245805,-632.3,0.00011643,2]
[352589011,1739182245814,-500.0,0.00011643,2]
[352589013,1739182245824,-18337.05,0.00011643,2]
[352589014,1739182245833,-1581.79,0.00011643,2]
[352589015,1739182245843,-500.0,0.00011643,2]
[352589016,1739182245852,-887.3,0.00011643,2]
[352589017,1739182245862,-3130.27,0.00011643,2]
[352589018,1739182245872,-586.47974818,0.00011643,2]
[352589019,1739182245881,-500.0,0.00011643,2]
[352589020,1739182245891,-529.4130135,0.00011643,2]
[352589022,1739182245900,-500.0,0.00011643,2]
[352589024,1739182245910,-500.0,0.00011643,2]
[352589026,1739182245920,-500.0,0.00011643,2]
[352589028,1739182245929,-293.3872912,0.00011643,2]
[352589030,1739182245938,-584.5319059,0.00011643,2]
[352589032,1739182245948,-1606.85,0.00011643,2]
[352589034,1739182245957,-500.0,0.00011643,2]
[352589036,1739182245967,-500.0,0.00011643,2]
[352589037,1739182245976,-857.73,0.00011643,2]
[352589038,1739182245987,-1277.65,0.00011643,2]
[352589039,1739182245996,-500.0,0.00011643,2]
[352589041,1739182246007,-500.0,0.00011643,2]
[352589042,1739182246017,-574.94,0.00011643,2]
[352589043,1739182246027,-500.0,0.00011643,2]
[352589044,1739182246037,-500.0,0.00011643,2]
[352589045,1739182246046,-571.46,0.00011643,2]
[352589046,1739182246056,-745.33,0.00011643,2]
[352589048,1739182246066,-976.49,0.00011643,2]
[352589049,1739182246075,-500.0,0.00011643,2]
[352589050,1739182246084,-749.83,0.00011643,2]
[352589051,1739182246093,-500.0,0.00011643,2]
[352589052,1739182246102,-773.12,0.00011643,2]
[352589053,1739182246112,-7576.33,0.00011643,2]
[352589055,1739182246122,-151.0,0.00011643,2]
[352589056,1739182246132,-1637.14,0.00011643,2]
[352589057,1739182246142,-2074.85,0.00011643,2]
[352589058,1739182246152,-868.21,0.00011643,2]
[352589059,1739182246167,-500.0,0.00011643,2]
[352589060,1739182246180,-500.0,0.00011643,2]
[352589062,1739182246191,-609.76,0.00011643,2]
[352589064,1739182246200,-500.0,0.00011643,2]
[352589066,1739182246211,-500.0,0.00011643,2]
[352589067,1739182246221,-504.38,0.00011643,2]
[352589068,1739182246231,-151.0,0.00011643,2]
[352589069,1739182246240,-3197.23,0.00011643,2]
[352589070,1739182246251,-500.0,0.00011643,2]
[352589071,1739182246262,-151.0,0.00011643,2]
[352589072,1739182246274,-500.0,0.00011643,2]
[352589073,1739182246284,-860.86,0.00011643,2]
[352589074,1739182246294,-1250.97,0.00011643,2]
[352589075,1739182246304,-1627.94,0.00011643,2]
[352589076,1739182246313,-232.3625242,0.00011662,2]
[352589077,1739182246323,-151.0,0.000117,2]
[352589078,1739182246333,-151.0,0.000117,2]
[352589079,1739182246343,-762.97992332,0.00011712,2]
[352589080,1739182246352,-241.68109226,0.00011715,2]
[352589081,1739182246362,-228.22336979,0.00011758,2]
[352589082,1739182246372,-197.95,0.0001178,2]
[352589083,1739182246382,-500.0,0.0001178,2]
[352589084,1739182246391,-500.0,0.0001178,2]
[352589085,1739182246401,-500.0,0.0001178,2]
[352589087,1739182246410,-500.0,0.0001178,2]
[352589089,1739182246420,-500.0,0.0001178,2]
[352589090,1739182246429,-500.0,0.0001178,2]
[352589092,1739182246439,-500.0,0.0001178,2]
[352589094,1739182246448,-536.23,0.0001178,2]
[352589095,1739182246457,-500.0,0.0001178,2]
[352589096,1739182246468,-500.0,0.0001178,2]
[352589097,1739182246478,-500.0,0.0001178,2]
[352589098,1739182246487,-500.0,0.0001178,2]
[352589099,1739182246496,-500.0,0.0001178,2]
[352589100,1739182246505,-507.03,0.0001178,2]
[352589101,1739182246515,-500.0,0.0001178,2]
[352589102,1739182246524,-500.0,0.0001178,2]
[352589103,1739182246534,-500.0,0.0001178,2]
[352589104,1739182246544,-723.46,0.0001178,2]
[352589105,1739182246554,-500.0,0.0001178,2]
[352589106,1739182246564,-151.07045,0.0001178,2]
[352589107,1739182246574,-500.0,0.0001178,2]
[352589108,1739182246584,-500.0,0.0001178,2]
[352589109,1739182246595,-500.0,0.0001178,2]
[352589110,1739182246604,-151.0,0.0001178,2]
[352589111,1739182246614,-500.0,0.0001178,2]
[352589112,1739182246623,-753.31,0.0001178,2]
[352589113,1739182246633,-151.0,0.0001178,2]
[352589114,1739182246643,-7190.81,0.0001178,2]
[352589115,1739182246654,-151.0,0.0001178,2]
[352589116,1739182246664,-500.0,0.0001178,2]
[352589117,1739182246674,-151.0,0.0001178,2]
[352589118,1739182246684,-500.0,0.0001178,2]
[352589119,1739182246694,-500.0,0.0001178,2]
[352589120,1739182246704,-500.0,0.0001178,2]
[352589121,1739182246717,-554.42,0.0001178,2]
[352589122,1739182246726,-739.79,0.0001178,2]
[352589123,1739182246736,-500.0,0.0001178,2]
[352589124,1739182246746,-1110.24,0.0001178,2]
[352589125,1739182246757,-500.0,0.0001178,2]
[352589126,1739182246767,-256.132282,0.0001178,2]
[352589127,1739182246777,-632.3,0.0001178,2]
[352589128,1739182246787,-256.132282,0.0001178,2]
[352589129,1739182246797,-151.0,0.0001178,2]
[352589130,1739182246806,-15065.77156293,0.0001178,2]
[352589131,1739182246934,-2750.0,0.0001178,2]
[352589132,1739182247282,-500.0,0.00010958,2]
[352589133,1739182247293,-500.0,0.00010999,2]
[352589134,1739182247303,-500.0,0.00010999,2]
[352589135,1739182247314,-500.0,0.00010999,2]
[352589136,1739182247323,-274.36258526,0.00010999,2]
[352589137,1739182247334,-500.0,0.00011095,2]
[352589138,1739182247343,-597.3,0.00011232,2]
[352589139,1739182247353,-1098.11,0.00011369,2]
[352589140,1739182247363,-1098.11,0.00011506,2]
[352589141,1739182247462,-1098.11,0.00011643,2]
[352589142,1739182247474,-521.27843707,0.0001178,2]
[352589143,1739182247485,-1581.79,0.0001178,2]
[352589144,1739182247497,-887.3,0.0001178,2]
[352589145,1739182247509,-3130.27,0.0001178,2]
[352589146,1739182247521,-500.0,0.0001178,2]
[352589147,1739182247533,-500.0,0.0001178,2]
[352589148,1739182247544,-500.0,0.0001178,2]
[352589149,1739182247555,-500.0,0.0001178,2]
[352589150,1739182247565,-151.0,0.0001178,2]
[352589151,1739182247574,-1606.85,0.0001178,2]
[352589152,1739182247584,-500.0,0.0001178,2]
[352589153,1739182247595,-857.73,0.0001178,2]
[352589154,1739182247606,-151.0,0.0001178,2]
[352589155,1739182247616,-1277.65,0.0001178,2]
[352589156,1739182247627,-500.0,0.0001178,2]
[352589157,1739182247638,-500.0,0.0001178,2]
[352589158,1739182247649,-574.94,0.0001178,2]
[352589159,1739182247660,-532.59101627,0.0001178,2]
[352589160,1739182247671,-500.0,0.0001178,2]
[352589161,1739182247681,-571.46,0.0001178,2]
[352589162,1739182247693,-745.33,0.0001178,2]
[352589163,1739182247704,-976.49,0.0001178,2]
[352589164,1739182247715,-500.0,0.0001178,2]
[352589165,1739182247725,-749.83,0.0001178,2]
[352589166,1739182247737,-151.0,0.0001178,2]
[352589167,1739182247748,-500.0,0.0001178,2]
[352589168,1739182247762,-773.12,0.0001178,2]
[352589169,1739182247775,-7576.33,0.0001178,2]
[352589170,1739182247785,-151.0,0.0001178,2]
[352589171,1739182247796,-1637.14,0.0001178,2]
[352589172,1739182247806,-2074.85,0.0001178,2]
[352589173,1739182247816,-868.21,0.0001178,2]
[352589174,1739182247826,-500.0,0.0001178,2]
[352589175,1739182247835,-151.0,0.0001178,2]
[352589176,1739182247846,-230.98636797,0.0001178,2]
[352589177,1739182247856,-500.0,0.0001178,2]
[352589178,1739182247866,-504.38,0.0001178,2]
[352589179,1739182247877,-3197.23,0.0001178,2]
[352589180,1739182247888,-500.0,0.0001178,2]
[352589181,1739182247898,-860.86,0.0001178,2]
[352589182,1739182247908,-1250.97,0.0001178,2]
[352589183,1739182247918,-1627.94,0.0001178,2]
[352589184,1739182247929,-1098.11,0.0001178,2]
[352589185,1739182247939,-151.0,0.000118,2]